fUSD/lending_fUSD_20260510
["ID","MTS","AMOUNT","RATE_DAILY","PERIOD"]
[421992453,1778425752000,-216.1,0.00011804,2]
[421992452,1778425752000,-300.0,0.0001177,2]
[421992450,1778425752000,-216.1,0.00011421,2]
[421992449,1778425752000,-216.1,0.00011037,2]
[421992451,1778425752000,-150.0,0.00011556,2]
[421992448,1778425752000,-6444.64770836,0.000107,2]
[421992457,1778425752000,-19.71892809,0.00013339,2]
[421992477,1778425831000,-300.0,0.00014632,2]
[421992478,1778425831000,-1200.0,0.00014632,2]
[421992480,1778425831000,-191.90604982,0.00014633,2]
[421992494,1778425831000,-448.64148816,0.0001471,2]
[421992484,1778425831000,-18675.24,0.00014633,2]
[421992486,1778425831000,-300.0,0.00014672,2]
[421992489,1778425831000,-150.0,0.00014699,2]
[421992483,1778425831000,-699.03,0.00014633,2]
[421992485,1778425831000,-1256.91365442,0.00014633,2]
[421992487,1778425831000,-600.0,0.00014672,2]
[421992479,1778425831000,-580.81,0.00014632,2]
[421992491,1778425831000,-239.54004835,0.0001471,2]
[421992490,1778425831000,-79555.42259358,0.000147,2]
[421992492,1778425831000,-500.0,0.0001471,2]
[421992488,1778425831000,-300.26882161,0.00014672,2]
[421992482,1778425831000,-150.99,0.00014633,2]
[421992471,1778425831000,-216.1,0.00014489,2]
[421992476,1778425831000,-300.0,0.00014632,2]
[421992493,1778425831000,-500.0,0.0001471,2]
[421992462,1778425831000,-166.67,0.00013699,2]
[421992461,1778425831000,-196.38107191,0.00013339,2]
[421992464,1778425831000,-300.0,0.00013871,2]
[421992463,1778425831000,-216.1,0.00013722,2]
[421992465,1778425831000,-300.0,0.00013871,2]
[421992474,1778425831000,-5243.56931548,0.00014611,2]
[421992469,1778425831000,-500.0,0.00013895,2]
[421992467,1778425831000,-357.2508661,0.00013871,2]
[421992470,1778425831000,-216.1,0.00014106,2]
[421992468,1778425831000,-347.19466138,0.00013871,2]
[421992472,1778425831000,-151.0984,0.00014533,2]
[421992475,1778425831000,-300.0,0.00014632,2]
[421992473,1778425831000,-420.0,0.000146,3]
[421992466,1778425831000,-300.0,0.00013871,2]
[421992496,1778425831000,-215.61639064,0.0001471,2]
[421992481,1778425831000,-1326.98,0.00014633,2]
[421992506,1778425831000,-500.0,0.0001471,2]
[421992534,1778425831000,-500.0,0.0001471,2]
[421992539,1778425831000,-500.0,0.0001471,2]
[421992540,1778425831000,-500.0,0.0001471,2]
[421992545,1778425831000,-500.0,0.0001471,2]
[421992543,1778425831000,-500.0,0.0001471,2]
[421992544,1778425831000,-500.0,0.0001471,2]
[421992542,1778425831000,-500.0,0.0001471,2]
[421992541,1778425831000,-500.0,0.0001471,2]
[421992546,1778425831000,-500.0,0.0001471,2]
[421992550,1778425831000,-500.0,0.0001471,2]
[421992551,1778425831000,-200.0,0.0001471,2]
[421992548,1778425831000,-500.0,0.0001471,2]
[421992547,1778425831000,-500.0,0.0001471,2]
[421992549,1778425831000,-500.0,0.0001471,2]
[421992553,1778425831000,-159.01650452,0.0001471,2]
[421992538,1778425831000,-542.55987227,0.0001471,2]
[421992531,1778425831000,-500.0,0.0001471,2]
[421992508,1778425831000,-500.0,0.0001471,2]
[421992536,1778425831000,-500.0,0.0001471,2]
[421992526,1778425831000,-500.0,0.0001471,2]
[421992495,1778425831000,-500.0,0.0001471,2]
[421992510,1778425831000,-500.0,0.0001471,2]
[421992512,1778425831000,-500.0,0.0001471,2]
[421992514,1778425831000,-500.0,0.0001471,2]
[421992497,1778425831000,-500.0,0.0001471,2]
[421992504,1778425831000,-338.45148869,0.0001471,2]
[421992502,1778425831000,-500.0,0.0001471,2]
[421992499,1778425831000,-500.0,0.0001471,2]
[421992516,1778425831000,-500.0,0.0001471,2]
[421992518,1778425831000,-500.0,0.0001471,2]
[421992520,1778425831000,-500.0,0.0001471,2]
[421992523,1778425831000,-500.0,0.0001471,2]
[421992524,1778425831000,-500.0,0.0001471,2]
[421992552,1778425831000,-500.0,0.0001471,2]
[421992500,1778425831000,-500.0,0.0001471,2]
[421992564,1778425832000,-500.0,0.0001471,2]
[421992568,1778425832000,-500.0,0.0001471,2]
[421992574,1778425832000,-594.9825,0.00014711,2]
[421992569,1778425832000,-500.0,0.0001471,2]
[421992575,1778425832000,-7797.55304511,0.00014711,2]
[421992567,1778425832000,-501.931273,0.0001471,2]
[421992565,1778425832000,-500.0,0.0001471,2]
[421992561,1778425832000,-500.0,0.0001471,2]
[421992563,1778425832000,-500.0,0.0001471,2]
[421992560,1778425832000,-500.0,0.0001471,2]
[421992558,1778425832000,-500.0,0.0001471,2]
[421992562,1778425832000,-215.38836235,0.0001471,2]
[421992557,1778425832000,-500.0,0.0001471,2]
[421992556,1778425832000,-325.80925039,0.0001471,2]
[421992555,1778425832000,-162.41259198,0.0001471,2]
[421992571,1778425832000,-500.0,0.0001471,2]
[421992554,1778425832000,-171.89938258,0.0001471,2]
[421992559,1778425832000,-500.0,0.0001471,2]
[421992573,1778425832000,-90448.33670965,0.00014711,2]
[421992566,1778425832000,-150.40022105,0.0001471,2]
[421992570,1778425832000,-168.0,0.0001471,2]
[421992591,1778425832000,-213.40898997,0.00014999,2]
[421992593,1778425832000,-82970.24248088,0.00015,2]
[421992589,1778425832000,-500.0,0.00014999,2]
[421992590,1778425832000,-500.0,0.00014999,2]
[421992594,1778425832000,-1254.41808677,0.00015,2]
[421992588,1778425832000,-244.18862786,0.0001499,2]
[421992586,1778425832000,-500.0,0.00014973,2]
[421992579,1778425832000,-67011.63775279,0.00014711,2]
[421992585,1778425832000,-500.0,0.00014973,2]
[421992592,1778425832000,-286.59101003,0.00014999,2]
[421992581,1778425832000,-169.21328639,0.00014711,2]
[421992578,1778425832000,-8585.26474699,0.00014711,2]
[421992577,1778425832000,-260.99829995,0.00014711,2]
[421992583,1778425832000,-216.1,0.00014873,2]
[421992580,1778425832000,-194189.61496376,0.00014711,2]
[421992584,1778425832000,-500.0,0.00014973,2]
[421992582,1778425832000,-3194.54549937,0.00014773,2]
[421992576,1778425832000,-6764.85518175,0.00014711,2]
[421992587,1778425832000,-500.0,0.00014973,2]
[421992572,1778425832000,-92247.497,0.00014711,2]
[421992597,1778425837000,-14567.7294806,0.000146,2]
[421992602,1778425837000,-8100.6,0.000146,2]
[421992600,1778425837000,-3779.55,0.000146,2]
[421992601,1778425837000,-386.48781388,0.000146,2]
[421992598,1778425837000,-48630.59999998,0.000146,2]
[421992599,1778425837000,-25739.58413361,0.000146,2]
[421992617,1778425839000,-580.80823926,0.000146,2]
[421992630,1778425842000,-453.99413574,0.000146,2]
[421992640,1778425845000,-3276.62263186,0.000146,2]
[421992639,1778425845000,-29381.09412161,0.000146,2]
[421992638,1778425845000,-2291.74134855,0.000146,2]
[421992637,1778425845000,-23535.44548335,0.000146,2]
[421992636,1778425845000,-3389.75148906,0.000146,2]
[421992641,1778425846000,-2009.72139395,0.000146,2]
[421992656,1778426092000,30000.0,0.00040998,120]
[421992657,1778426116000,50000.0,0.00040998,120]
[421992658,1778426128000,35731.897473,0.00040998,120]
[421992660,1778426287000,161.52,8.543e-05,2]
[421992659,1778426287000,161.52,7.364e-05,2]
[421992661,1778426288000,161.52,9.722e-05,2]
[421992662,1778426549000,500.0,0.00040996,120]
[421992665,1778426550000,500.0,0.00040996,120]
[421992664,1778426550000,500.0,0.00040996,120]
[421992663,1778426550000,500.0,0.00040996,120]
[421992666,1778426550000,500.0,0.00040996,120]
[421992669,1778426551000,500.0,0.00040996,120]
[421992668,1778426551000,500.0,0.00040996,120]
[421992667,1778426551000,500.0,0.00040996,120]
[421992673,1778426552000,500.0,0.00040996,120]
[421992672,1778426552000,500.0,0.00040996,120]
[421992671,1778426552000,500.0,0.00040996,120]
[421992670,1778426552000,500.0,0.00040996,120]
[421992674,1778426553000,500.0,0.00040996,120]
[421992675,1778426553000,500.0,0.00040996,120]
[421992677,1778426553000,500.0,0.00040996,120]
[421992676,1778426553000,500.0,0.00040996,120]
[421992680,1778426554000,500.0,0.00040996,120]
[421992679,1778426554000,500.0,0.00040996,120]
[421992678,1778426554000,500.0,0.00040996,120]
[421992684,1778426770000,500.0,0.00041002,120]
[421992683,1778426770000,500.0,0.00041002,120]
[421992682,1778426770000,500.0,0.00041002,120]
[421992681,1778426770000,500.0,0.00041002,120]
[421992687,1778426771000,293.6152119,0.00041002,120]
[421992686,1778426771000,500.0,0.00041002,120]
[421992685,1778426771000,500.0,0.00041002,120]
[421992688,1778426828000,206.96783375,0.00041002,120]
[421992689,1778426829000,500.0,0.00041002,120]
[421992694,1778426848000,-250.0,0.00011991,2]
[421992696,1778426848000,-167.09511924,0.00011991,2]
[421992693,1778426848000,-250.0,0.00011991,2]
[421992692,1778426848000,-150.0,0.00011917,2]
[421992691,1778426848000,-150.0,0.00011773,2]
[421992690,1778426848000,-161.52,0.00010901,2]
[421992695,1778426848000,-207.11933784,0.00011991,2]
[421992697,1778426968000,-154.09,0.00010739,2]
[421992699,1778426968000,-148.51257086,0.0001208,2]
[421992698,1778426968000,-82.90488076,0.00011991,2]
[421992700,1778426973000,-13.00742914,0.0001208,2]
[421992701,1778426973000,-161.52,0.00013259,2]
[421992703,1778426973000,-1852.42,0.00013369,2]
[421992704,1778426973000,-211.67,0.00013424,2]
[421992705,1778426973000,-1540.32049251,0.00013464,2]
[421992702,1778426973000,-1278.71467835,0.00013357,2]
[421992706,1778427029000,461.26625018,0.00041002,120]
[421992729,1778427031000,-211.23,0.000144,2]
[421992725,1778427031000,-300.0,0.00014399,2]
[421992720,1778427031000,-946.80947965,0.00014,2]
[421992718,1778427031000,-250.0,0.00014,2]
[421992717,1778427031000,-150.0,0.00013996,2]
[421992719,1778427031000,-53.18052035,0.00014,2]
[421992721,1778427031000,-850.4,0.00014,2]
[421992715,1778427031000,-200.0,0.00013817,2]
[421992716,1778427031000,-163.32,0.00013996,2]
[421992723,1778427031000,-500.0,0.00014099,2]
[421992713,1778427031000,-160.7,0.0001371,2]
[421992724,1778427031000,-200.0,0.00014395,2]
[421992714,1778427031000,-500.0,0.00013736,2]
[421992710,1778427031000,-211.23,0.00013522,2]
[421992707,1778427031000,-185.54950749,0.00013464,2]
[421992709,1778427031000,-1095.90226347,0.00013505,2]
[421992712,1778427031000,-175.41,0.00013699,2]
[421992711,1778427031000,-172.6,0.00013622,2]
[421992708,1778427031000,-673.09773653,0.00013505,2]
[421992722,1778427031000,-299.99,0.00014,2]
[421992728,1778427031000,-300.0,0.00014399,2]
[421992727,1778427031000,-1200.0,0.00014399,2]
[421992737,1778427031000,-500.0,0.00014599,2]
[421992732,1778427031000,-354678.516,0.00014499,2]
[421992750,1778427031000,-500.0,0.00014599,2]
[421992748,1778427031000,-500.0,0.00014599,2]
[421992745,1778427031000,-500.0,0.00014599,2]
[421992747,1778427031000,-500.0,0.00014599,2]
[421992739,1778427031000,-500.0,0.00014599,2]
[421992746,1778427031000,-500.0,0.00014599,2]
[421992742,1778427031000,-500.0,0.00014599,2]
[421992743,1778427031000,-500.0,0.00014599,2]
[421992749,1778427031000,-500.0,0.00014599,2]
[421992744,1778427031000,-500.0,0.00014599,2]
[421992738,1778427031000,-500.0,0.00014599,2]
[421992741,1778427031000,-500.0,0.00014599,2]
[421992734,1778427031000,-182738.913,0.000145,2]
[421992730,1778427031000,-161.52,0.00014438,2]
[421992733,1778427031000,-549.7276,0.000145,2]
[421992735,1778427031000,-6075.176,0.000145,2]
[421992736,1778427031000,-2080.17592889,0.00014591,2]
[421992740,1778427031000,-224.25598723,0.00014599,2]
[421992731,1778427031000,-150.0,0.00014498,2]
[421992726,1778427031000,-300.0,0.00014399,2]
[421992768,1778427032000,-738.40101041,0.0001471,2]
[421992785,1778427032000,-162.79241857,0.0001499,2]
[421992771,1778427032000,-150.0,0.00014716,2]
[421992770,1778427032000,-500.0,0.0001471,2]
[421992772,1778427032000,-879.39,0.00014809,2]
[421992774,1778427032000,-300.0,0.0001481,2]
[421992776,1778427032000,-175.41,0.00014914,2]
[421992775,1778427032000,-291.42205796,0.0001481,2]
[421992783,1778427032000,-500.0,0.00014973,2]
[421992779,1778427032000,-500.0,0.00014973,2]
[421992784,1778427032000,-500.0,0.00014973,2]
[421992777,1778427032000,-1792.06835121,0.00014921,2]
[421992786,1778427032000,-284.61163765,0.00014999,2]
[421992763,1778427032000,-500.0,0.00014599,2]
[421992778,1778427032000,-3424.12863253,0.00014921,2]
[421992773,1778427032000,-300.0,0.0001481,2]
[421992756,1778427032000,-150.0,0.00014599,2]
[421992769,1778427032000,-500.0,0.0001471,2]
[421992751,1778427032000,-500.0,0.00014599,2]
[421992752,1778427032000,-500.0,0.00014599,2]
[421992761,1778427032000,-500.0,0.00014599,2]
[421992753,1778427032000,-500.0,0.00014599,2]
[421992758,1778427032000,-271.92712392,0.00014599,2]
[421992754,1778427032000,-500.0,0.00014599,2]
[421992755,1778427032000,-500.0,0.00014599,2]
[421992780,1778427032000,-500.0,0.00014973,2]
[421992759,1778427032000,-500.0,0.00014599,2]
[421992757,1778427032000,-500.0,0.00014599,2]
[421992760,1778427032000,-500.0,0.00014599,2]
[421992762,1778427032000,-500.0,0.00014599,2]
[421992767,1778427032000,-500.0,0.00014709,2]
[421992765,1778427032000,-25011.397913,0.00014684,2]
[421992766,1778427032000,-2055.0808557,0.00014684,2]
[421992764,1778427032000,-1249.56,0.00014624,2]
[421992781,1778427032000,-500.0,0.00014973,2]
[421992812,1778427032000,-195089.20501521,0.00015,2]
[421992799,1778427032000,-500.0,0.00014999,2]
[421992807,1778427032000,-500.0,0.00014999,2]
[421992800,1778427032000,-500.0,0.00014999,2]
[421992808,1778427032000,-501.07586597,0.00014999,2]
[421992806,1778427032000,-500.0,0.00014999,2]
[421992803,1778427032000,-500.0,0.00014999,2]
[421992813,1778427032000,-43008.37633905,0.00015,2]
[421992802,1778427032000,-500.0,0.00014999,2]
[421992814,1778427032000,-164923.58542403,0.00015,2]
[421992815,1778427032000,-259.37939,0.00015,2]
[421992818,1778427032000,-335.31456548,0.00015,2]
[421992819,1778427032000,-1299.03109547,0.00015,2]
[421992817,1778427032000,-3809.40052919,0.00015,2]
[421992820,1778427032000,-381.96779809,0.00015,2]
[421992821,1778427032000,-2468.05833915,0.00015,2]
[421992816,1778427032000,-340.48204018,0.00015,2]
[421992810,1778427032000,-500.06892776,0.00014999,2]
[421992782,1778427032000,-500.0,0.00014973,2]
[421992809,1778427032000,-293.51592497,0.00014999,2]
[421992788,1778427032000,-536.57156268,0.00014999,2]
[421992792,1778427032000,-500.0,0.00014999,2]
[421992798,1778427032000,-500.0,0.00014999,2]
[421992793,1778427032000,-500.0,0.00014999,2]
[421992804,1778427032000,-500.0,0.00014999,2]
[421992789,1778427032000,-500.0,0.00014999,2]
[421992787,1778427032000,-500.0,0.00014999,2]
[421992794,1778427032000,-398.96,0.00014999,2]
[421992790,1778427032000,-500.0,0.00014999,2]
[421992796,1778427032000,-500.0,0.00014999,2]
[421992795,1778427032000,-500.0,0.00014999,2]
[421992797,1778427032000,-500.0,0.00014999,2]
[421992801,1778427032000,-500.0,0.00014999,2]
[421992811,1778427032000,-29596.83405818,0.00015,2]
[421992805,1778427032000,-500.0,0.00014999,2]
[421992791,1778427032000,-500.0,0.00014999,2]
[421992843,1778427037000,-996.93,0.00015,2]
[421992844,1778427037000,-25739.58413361,0.00015,2]
[421992842,1778427037000,-300.72668511,0.00015,2]
[421992840,1778427037000,-3344.68505,0.00015,2]
[421992839,1778427037000,-2500.0,0.000145,2]
[421992841,1778427037000,-322.48383966,0.00015,2]
[421992846,1778427038000,-251.19829749,0.00015,2]
[421992845,1778427038000,-637.55172502,0.00015,2]
[421992848,1778427038000,-8539.3814926,0.00015,2]
[421992847,1778427038000,-393.5914351,0.00015,2]
[421992900,1778427040000,-7314.64809695,0.00015,2]
[421992899,1778427040000,-1614.75008106,0.00015,2]
[421992898,1778427040000,-878.64494776,0.00015,2]
[421992913,1778427043000,-166.15910829,0.00015,2]
[421992914,1778427043000,-282.36355332,0.00015,2]
[421992912,1778427043000,-443.27738228,0.00015,2]
[421992911,1778427043000,-16064.31230791,0.00015,2]
[421992910,1778427043000,-207.97335833,0.0001471,2]
[421992927,1778427045000,-171374.06331039,0.00015,2]
[421992926,1778427045000,-500.0,0.00014499,2]
[421992920,1778427045000,-150.93147345,0.00014499,2]
[421992925,1778427045000,-500.0,0.00014499,2]
[421992928,1778427045000,-151.0,0.00015,2]
[421992929,1778427045000,-2589.2798222,0.00015021,2]
[421992919,1778427045000,-500.0,0.00014499,2]
[421992918,1778427045000,-296.78014406,0.00014499,2]
[421992922,1778427045000,-500.0,0.00014499,2]
[421992923,1778427045000,-500.0,0.00014499,2]
[421992930,1778427045000,-800.0,0.00015038,2]
[421992917,1778427045000,-500.0,0.00014499,2]
[421992924,1778427045000,-275.36059487,0.00014499,2]
[421992932,1778427045000,-879.39,0.00015179,2]
[421992921,1778427045000,-507.24560988,0.00014499,2]
[421992937,1778427045000,-255.0,0.00015629,2]
[421992933,1778427045000,-450.23,0.00015228,2]
[421992946,1778427045000,-151.0,0.00016438,2]
[421992943,1778427045000,-300.0,0.00016,2]
[421992944,1778427045000,-1500.0,0.00016068,2]
[421992940,1778427045000,-420.0,0.00015769,2]
[421992936,1778427045000,-879.39,0.0001555,2]
[421992945,1778427045000,-879.39,0.0001629,2]
[421992942,1778427045000,-879.39,0.0001592,2]
[421992934,1778427045000,-873.48821588,0.00015491,21]
[421992938,1778427045000,-2003.20941951,0.00015687,2]
[421992941,1778427045000,-1680.0,0.00015839,2]
[421992939,1778427045000,-300.0,0.00015769,2]
[421992931,1778427045000,-2157.14243826,0.00015139,2]
[421992935,1778427045000,-1000.0,0.00015521,2]
[421992994,1778427046000,-2013.76659173,0.00023,2]
[421992985,1778427046000,-261.0,0.00021,2]
[421992995,1778427046000,-261.0,0.00023,2]
[421992984,1778427046000,-1152.0,0.00020709,2]
[421992993,1778427046000,-297.0,0.00022679,2]
[421992979,1778427046000,-1792.06835114,0.00020472,2]
[421992977,1778427046000,-160.05861464,0.0002,2]
[421992976,1778427046000,-160.05861465,0.0002,2]
[421992982,1778427046000,-160.7,0.00020565,2]
[421992972,1778427046000,-1252.0,0.00019572,2]
[421992983,1778427046000,-800.0,0.00020677,2]
[421992987,1778427046000,-5000.0,0.00021918,2]
[421993007,1778427046000,-6048.0,0.00025203,2]
[421992989,1778427046000,-261.0,0.00022,2]
[421992991,1778427046000,-3424.12863247,0.00022344,2]
[421992990,1778427046000,-184.40122904,0.00022242,2]
[421992992,1778427046000,-800.0,0.00022557,2]
[421992988,1778427046000,-450.0,0.00022,2]
[421992978,1778427046000,-4170.69995317,0.00020403,2]
[421992997,1778427046000,-528.52092941,0.00023333,2]
[421992996,1778427046000,-1792.06835114,0.00023247,2]
[421993008,1778427046000,-3539.0,0.00025203,2]
[421992998,1778427046000,-256.0,0.0002349,5]
[421992999,1778427046000,-261.0,0.00024,2]
[421993005,1778427046000,-198.68,0.00024658,2]
[421992986,1778427046000,-4609.0,0.00021082,2]
[421992973,1778427046000,-400.0,0.0002,2]
[421992963,1778427046000,-1792.06835114,0.00017696,2]
[421992980,1778427046000,-2985.4,0.00020548,2]
[421993000,1778427046000,-1000.0,0.00024658,2]
[421992955,1778427046000,-433.0,0.00016847,2]
[421992954,1778427046000,-2000.0,0.00016616,2]
[421992956,1778427046000,-800.0,0.00016918,2]
[421992947,1778427046000,-151.0,0.00016438,2]
[421992949,1778427046000,-500.0,0.00016575,2]
[421992952,1778427046000,-153.0,0.00016613,2]
[421992950,1778427046000,-450.23,0.00016598,2]
[421992953,1778427046000,-235.0,0.00016613,2]
[421992948,1778427046000,-153.671273,0.00016438,2]
[421992957,1778427046000,-160.0,0.0001692,2]
[421992960,1778427046000,-508.5716395,0.00017164,2]
[421992975,1778427046000,-160.05861465,0.0002,2]
[421992959,1778427046000,-160.7,0.00017137,2]
[421992961,1778427046000,-587.0,0.00017268,2]
[421992958,1778427046000,-214.7734975,0.0001692,2]
[421992968,1778427046000,-1725.87,0.00018849,2]
[421992969,1778427046000,-823.0,0.00018911,2]
[421992967,1778427046000,-800.0,0.00018797,2]
[421992964,1778427046000,-350.0,0.00018,2]
[421992966,1778427046000,-3424.12863247,0.00018633,2]
[421992965,1778427046000,-736.0,0.00018166,2]
[421992971,1778427046000,-11082.87,0.00019178,2]
[421992981,1778427046000,-2985.4,0.00020548,2]
[421992970,1778427046000,-3292.0,0.00019165,2]
[421992974,1778427046000,-261.0,0.0002,2]
[421992962,1778427046000,-2351.0,0.00017423,2]
[421993004,1778427046000,-156.89,0.00024658,2]
[421992951,1778427046000,-286.95,0.000166,2]
[421993006,1778427046000,-279.0,0.00025,2]
[421993041,1778427046000,-316.37101454,0.00029069,2]
[421993038,1778427046000,-151.0,0.00028611,7]
[421993040,1778427046000,-1792.06835114,0.00028798,2]
[421993039,1778427046000,-184.40122904,0.00028761,2]
[421993043,1778427046000,-5580.7972218,0.00029514,2]
[421993044,1778427046000,-3424.12863247,0.00029767,2]
[421993046,1778427046000,-374.0,0.00030093,30]
[421993047,1778427046000,-10878.59610756,0.000301,7]
[421993048,1778427046000,-3407.68209363,0.000301,7]
[421993050,1778427046000,-497.34458783,0.000301,7]
[421993049,1778427046000,-250.0,0.000301,7]
[421993045,1778427046000,-158.0,0.0003,120]
[421993033,1778427046000,-6048.0,0.00028203,2]
[421993051,1778427046000,-3565.58721098,0.000301,7]
[421993056,1778427046000,-165.0,0.00030499,30]
[421993055,1778427046000,-158.4447123,0.00030499,30]
[421993052,1778427046000,-166.58,0.00030301,2]
[421993062,1778427046000,-151.0,0.00031433,7]
[421993054,1778427046000,-164.0,0.00030498,30]
[421993057,1778427046000,-6048.0,0.00031203,2]
[421993059,1778427046000,-354.71244905,0.00031221,2]
[421993060,1778427046000,-1000.0,0.00031292,7]
[421993058,1778427046000,-3539.0,0.00031203,2]
[421993061,1778427046000,-156.57,0.000313,7]
[421993064,1778427046000,-167.0,0.00031499,30]
[421993063,1778427046000,-261.0,0.00031495,30]
[421993053,1778427046000,-261.0,0.00030495,30]
[421993036,1778427046000,-151.0,0.00028611,7]
[421993002,1778427046000,-191.38,0.00024658,2]
[421993034,1778427046000,-3539.0,0.00028203,2]
[421993032,1778427046000,-186.916363,0.00028113,10]
[421993009,1778427046000,-410.295,0.00025203,2]
[421993010,1778427046000,-184.40122904,0.00025502,2]
[421993020,1778427046000,-156.57,0.000274,7]
[421993011,1778427046000,-1792.06835114,0.00026023,2]
[421993019,1778427046000,-219.0,0.000274,5]
[421993014,1778427046000,-156.89,0.00026143,7]
[421993018,1778427046000,-5266.08,0.00027397,10]
[421993021,1778427046000,-2608.17500898,0.000274,7]
[421993012,1778427046000,-3424.12863247,0.00026056,2]
[421993013,1778427046000,-156.93,0.00026143,7]
[421993017,1778427046000,-6319.29,0.00027397,10]
[421993016,1778427046000,-1500.0,0.00027397,2]
[421993003,1778427046000,-156.93,0.00024658,2]
[421993023,1778427046000,-4945.63,0.000274,2]
[421993015,1778427046000,-527.59456359,0.00027122,2]
[421993037,1778427046000,-195.910297,0.00028611,7]
[421993042,1778427046000,-156.93,0.00029115,2]
[421993031,1778427046000,-500.0,0.000278,7]
[421993028,1778427046000,-156.93,0.00027629,30]
[421993029,1778427046000,-156.89,0.00027629,30]
[421993030,1778427046000,-4388.4,0.0002779,10]
[421993035,1778427046000,-151.0,0.00028203,7]
[421993024,1778427046000,-4945.63,0.000274,2]
[421993027,1778427046000,-4945.63,0.000274,2]
[421993025,1778427046000,-4945.63,0.000274,2]
[421993022,1778427046000,-15991.03499102,0.000274,7]
[421993026,1778427046000,-4945.63,0.000274,2]
[421993107,1778427047000,-150.0,0.00036,7]
[421993105,1778427047000,-216.83912455,0.00036,7]
[421993106,1778427047000,-150.0,0.00036,7]
[421993108,1778427047000,-150.0,0.00036,7]
[421993095,1778427047000,-161.72,0.00036,2]
[421993103,1778427047000,-161.71,0.00036,2]
[421993100,1778427047000,-161.71,0.00036,2]
[421993101,1778427047000,-161.71,0.00036,2]
[421993111,1778427047000,-150.0,0.00036,7]
[421993102,1778427047000,-161.71,0.00036,2]
[421993092,1778427047000,-184.40122904,0.00035281,2]
[421993104,1778427047000,-150.0,0.00036,7]
[421993110,1778427047000,-150.0,0.00036,7]
[421993114,1778427047000,-201.69859976,0.00036,7]
[421993113,1778427047000,-150.0,0.00036,7]
[421993123,1778427047000,-150.0,0.00036328,7]
[421993115,1778427047000,-150.0,0.00036,7]
[421993124,1778427047000,-156.89,0.00036356,2]
[421993112,1778427047000,-150.0,0.00036,7]
[421993118,1778427047000,-150.0,0.00036131,7]
[421993117,1778427047000,-150.0,0.00036066,7]
[421993122,1778427047000,-156.93,0.00036325,2]
[421993119,1778427047000,-150.0,0.00036197,7]
[421993121,1778427047000,-150.0,0.00036286,7]
[421993120,1778427047000,-150.0,0.00036262,7]
[421993089,1778427047000,-150.0,0.00034696,21]
[421993116,1778427047000,-150.0,0.00036,7]
[421993125,1778427047000,-150.0,0.00036393,7]
[421993109,1778427047000,-150.0,0.00036,7]
[421993090,1778427047000,-441.36,0.00034845,30]
[421993084,1778427047000,-1776.66307472,0.00034203,2]
[421993096,1778427047000,-161.71,0.00036,2]
[421993074,1778427047000,-198.68,0.0003283,7]
[421993066,1778427047000,-1792.06835114,0.00031574,2]
[421993126,1778427047000,-150.0,0.000364,7]
[421993067,1778427047000,-184.40122904,0.00032021,2]